Cogmind - Beta 17 @@@ ROGUE MODE // 2026.06.26 @ 20:05:09 Player: [THREAT] Result: Destroyed by 59-GGW(j) with Overtuned Pulse Rifle Performance ------------- Evolutions (0) 0 Regions Visited (4) 800 Robots Destroyed (34) 170 Value Destroyed (748) 748 Prototype IDs (7) 140 Alien Tech Used (0) 0 Bonus (4833) 4833 TOTAL SCORE: 6691 Bonus ------- Prayed to X0-1V1 5000 Friendly Fire -167 Cogmind --------- Core Integrity 0/250 Matter 162/300 Energy 100/100 System Corruption 2% Temperature Hot (239) Movement Walking (120) Location -9/Scraptown Parts ------- > --- POWER (1) -------- (None) > --- PROPULSION (2) --- Armored Leg > --- UTILITY (2) ------ Medium Storage Unit > --- WEAPON (2) ------- Heavy Mace > --- INVENTORY (10) --- Visual Processing Unit Salvage Targeting Computer Heavy Armor Plating Hacking Suite Cobbler Unit Peak State ------------ > --- POWER ------------ Cooled Ion Engine > --- PROPULSION ------- Armored Wheel Armored Wheel > --- UTILITY ---------- Medium Storage Unit X0-1V1's Piety Tracker > --- WEAPON ----------- Heavy Flail Chainsword > --- INVENTORY -------- Armored Wheel Visual Processing Unit Salvage Targeting Computer Heavy Armor Plating Cobbler Unit Flamer Maul Heavy Mace [Rating: 30] Favorites ----------- Power Cooled Ion Engine Engine Cooled Ion Engine Propulsion Armored Wheel Leg Improved Aluminum Leg Wheel Armored Wheel Utility Medium Storage Unit Device X0-1V1's Piety Tracker Storage Medium Storage Unit Weapon Heavy Flail Energy Gun Medium Laser Energy Cannon Light EM Pulse Cannon Ballistic Gun Heavy Assault Rifle Launcher Mini Grenade Launcher Special Weapon Flamer Impact Weapon Heavy Flail Slashing Weapon Chainsword Build | -11 -10 -10 -9 -9 ------- Run | Yrd Mat Sub Rec Scr Slots Evolved . | . . . . . Power . | . . . . . Propulsion . | . . . . . Utility . | . . . . . Weapon . | . . . . . Parts Attached 31 | 6 11 7 1 6 Power 6 | 1 3 1 . 1 Engine 6 | 1 3 1 . 1 Core . | . . . . . Reactor . | . . . . . Propulsion 7 | 2 2 1 . 2 Treads . | . . . . . Leg 5 | 2 2 . . 1 Wheel 2 | . . 1 . 1 Hover . | . . . . . Flight . | . . . . . Utility 4 | 1 2 1 . . Device 2 | . 1 1 . . Storage 2 | 1 1 . . . Processor . | . . . . . Hackware . | . . . . . Protection . | . . . . . Artifact . | . . . . . Weapon 14 | 2 4 4 1 3 Energy Gun 2 | 2 . . . . Energy Cannon 1 | . . . 1 . Ballistic Gun 1 | . . . . 1 Ballistic Cannon . | . . . . . Launcher 3 | . 1 1 . 1 Special Weapon 2 | . 2 . . . Impact Weapon 4 | . 1 3 . . Slashing Weapon 1 | . . . . 1 Piercing Weapon . | . . . . . Special Melee Weapon . | . . . . . Unidentified Prototypes 1 | . 1 . . . Parts Lost 12 | . . 4 . 8 Power 1 | . . . . 1 Propulsion 4 | . . 2 . 2 Utility 2 | . . 1 . 1 Weapon 5 | . . 1 . 4 Highest Loss Streak 4 | . . 3 . 4 To Critical Strikes . | . . . . . Average Backups 5 | . 3 6 6 7 Power . | . . . . . Propulsion . | . . . 1 . Utility 2 | . . 3 3 4 Weapon 2 | . 1 3 2 1 Tool/Special . | . . . . . Unused Backups 29 | . 10 10 4 5 Power 2 | . 1 1 . . Propulsion 5 | . 2 3 . . Utility 9 | . 2 2 . 5 Weapon 12 | . 5 3 4 . Tool/Special 1 | . . 1 . . Average Slot Usage (%) 87 | . 93 82 99 86 Engine 13 | . 14 14 14 13 Leg 10 | . 28 10 . . Wheel 8 | . . 1 28 22 Device 12 | . 8 13 14 9 Storage 14 | . 14 14 14 14 Energy Gun 3 | . 21 . . . Launcher 5 | . 2 8 . 3 Special Weapon 5 | . 2 4 10 6 Impact Weapon 11 | . 2 14 14 6 Slashing Weapon 1 | . . . . 7 Peak Build Rating 30 | 6 28 28 28 30 Average Rating 22 | 4 15 24 27 24 On Entrance 17 | . 6 27 28 26 Avg Prop Armor Cover (%) . | . . . . . Naked Turns . | . . . . . Heaviest Build 31 | 13 26 27 26 31 Greatest Support 26 | 20 26 26 24 24 Greatest Overweight (x) 8 | . 1 8 1 8 Average Overweight (x) 1 | . . 2 . . Largest Inventory Capacity 10 | 8 10 10 10 10 Average Capacity 9 | 6 8 10 10 10 Most Carried 10 | 3 10 10 10 10 Average Carried 8 | 1 4 9 8 9 Final Capacity 10 | 8 10 10 10 10 Final Carried 10 | 1 10 9 10 7 Class Distribution -------------------- 100% | Mutant Dominant Class ---------------- Mutant | -10/Materials Mutant | -10/Subcaves Mutant | -9/Recycling Mutant | -9/Scraptown Resources | -11 -10 -10 -9 -9 ----------- Run | Yrd Mat Sub Rec Scr Matter Collected 688 | 140 68 184 271 25 Remotely . | . . . . . Salvage Created 1181 | 70 179 215 462 255 Parts 60 | 3 19 13 9 16 Haulers Intercepted 1 | . 1 . . . Recyclers Shooed 3 | . 1 . 2 . Parts Field Recycled . | . . . . . Retrieved Matter . | . . . . . Parts Self-Destructed 6 | . . 6 . . Prevented . | . . . . . Parts Restored . | . . . . . Kills | -11 -10 -10 -9 -9 ------- Run | Yrd Mat Sub Rec Scr Combat Hostiles Destroyed 20 | . 4 10 1 5 Melee 4 | . 1 1 . 2 Guns 1 | . 1 . . . Cannons 2 | . . 2 . . AOE 11 | . 2 6 . 3 Classes Destroyed 16 | 1 7 4 . 4 Worker 2 | . 2 . . . Builder 1 | . 1 . . . Tunneler 1 | . 1 . . . Hauler 1 | . 1 . . . Recycler 6 | 1 . . 5 . Turret 2 | . . 2 . . Watcher 1 | . 1 . . . Swarmer 8 | . 3 5 . . Grunt 1 | . 1 . . . Sentry 2 | . . 1 1 . Subdweller 4 | . . 4 . . Federalist 1 | . . . . 1 Guru 1 | . . . . 1 Scientist 1 | . . 1 . . Scrapper 2 | . . . . 2 Elite 1 | . . . . 1 Best Kill Streak 6 | 1 4 6 2 3 Combat Bots Only 4 | . 3 4 1 3 Max Kills in Single Turn 2 | 1 2 2 1 2 Gunslinging . | . . . . . Exploded 2 | . 1 2 . 2 Melee 1 | . 1 1 . 1 Uniques/NPCs Destroyed . | . . . . . Combat | -11 -10 -10 -9 -9 -------- Run | Yrd Mat Sub Rec Scr Hostile Shots Fired 180 | . 19 85 2 74 Missed 54 | . 3 32 1 18 Hits 126 | . 16 53 1 56 Projectile 126 | . 16 53 1 56 AOE 2 | . . 2 . . Critical Strikes 5 | . . 1 . 4 Damage Taken 2001 | . 143 769 18 1071 Core 468 | . 31 174 . 263 Absorbed by Shields . | . . . . . Core Remaining (%) 100 | 100 . . . . Volleys Fired 63 | 3 22 21 5 12 Largest 2 | 2 2 1 1 1 Hottest 100 | 90 100 100 100 100 Shots Fired 80 | 6 36 21 5 12 Gun 36 | 6 29 . . 1 Cannon 4 | . . . 4 . Launcher 27 | . 4 15 . 8 Special 13 | . 3 6 1 3 Kinetic 1 | . . . . 1 Thermal 48 | 6 32 6 1 3 Explosive 27 | . 4 15 . 8 Electromagnetic 4 | . . . 4 . Robot Hit Streak 8 | 2 5 6 8 6 Robot Miss Streak 3 | 1 3 1 1 2 Penetration Max . | . . . . . Secondary Targets . | . . . . . Shots Hit Robots 64 | 3 19 15 10 17 Core Hits 49 | 2 14 20 2 11 Critical Kills 1 | . . . 1 . Critical Parts Destroyed 4 | . . 1 2 1 Critical Strikes 8 | . 1 2 4 1 Burn 2 | . 1 1 . . Corrupt 1 | . . . 1 . Smash 5 | . . 1 3 1 Melee Attacks 27 | . 1 8 9 9 Impact 25 | . 1 8 9 7 Slashing 2 | . . . . 2 Piercing . | . . . . . Sneak Attacks 7 | . . 1 6 . Combat Hostiles . | . . . . . Follow-up Attacks . | . . . . . Damage Inflicted 3227 | 34 489 1201 584 919 Guns 258 | 34 211 . . 13 Cannons 68 | . . . 68 . Explosions 1577 | . 218 812 . 547 Melee 1208 | . 50 327 505 326 Ramming 5 | . . 5 . . Kinetic 13 | . . . . 13 Thermal 356 | 34 221 57 11 33 Explosive 1577 | . 218 812 . 547 Electromagnetic 68 | . . . 68 . Impact 1137 | . 50 327 505 255 Slashing 71 | . . . . 71 Piercing . | . . . . . Highest Corruption 2 | . . . . 2 Average Corruption 1 | . . . . 1 Corruption Purged . | . . . . . Corruption Blocked . | . . . . . Effects 1 | . . . . 1 Heat Flow Errors 1 | . . . . 1 Overload Shots . | . . . . . Overflow Damage 483 | . 31 79 311 62 Projectiles 6 | . . 6 . . Explosions 13 | . 1 12 . . Melee 464 | . 30 61 311 62 Knockbacks 8 | . . 2 3 3 Impact 8 | . . 2 3 3 Kinetic . | . . . . . Secondary . | . . . . . Self-Inflicted Damage 39 | . . . . 39 Shots 2 | . . . . 2 Rammed . | . . . . . Targets Rammed 2 | . 1 1 . . Kicked 2 | . 1 1 . . Crushed . | . . . . . Highest Temperature 250 | 90 160 245 36 250 Average Temperature 54 | 48 67 92 18 31 Received Heat Transfer 1120 | . 18 546 . 556 Siege Activations . | . . . . . Martial Activations . | . . . . . Shielding Activations . | . . . . . Robots Disrupted 1 | . . . . 1 Combat Hostiles 1 | . . . . 1 Robots Corrupted 4 | . . 1 3 . Combat Hostiles 2 | . . 1 1 . Parts Fried 4 | . . 2 2 . Impact Corruptions 12 | . 1 1 9 1 Robots Melted . | . . . . . Combat Hostiles . | . . . . . Parts Melted 2 | . . 1 . 1 Heat Transferred 1589 | 87 712 560 80 150 Parts Sabotaged . | . . . . . Parts Stolen . | . . . . . Parts Stripped . | . . . . . Power Chain Reactions . | . . . . . Alert | -11 -10 -10 -9 -9 ------- Run | Yrd Mat Sub Rec Scr Maximum Alert Level . | . . . . . Low Security (%) 100 | 100 100 . 100 . Level 1 . | . . . . . Level 2 . | . . . . . Level 3 . | . . . . . Level 4 . | . . . . . Level 5 . | . . . . . High Security . | . . . . . Max Security . | . . . . . Peak Influence 102 | 5 102 . 49 . Initial 49 | . . . 49 . Average 13 | . 16 . 12 . Influence Increases 404 | 5 179 160 60 . Destroy 0b10 Robot/C 260 | . 80 160 20 . Destroy 0b10 Robot/NC 60 | 5 30 . 25 . Destroy Leader 14 | . 14 . . . Disable Machine 45 | . 30 . 15 . Destroy Structure 25 | . 25 . . . Influence Decreases 404 | 5 97 138 164 . Entered New Map 95 | . . 40 55 . Time Decay 299 | 5 97 88 109 . Lost Part 10 | . . 10 . . Squads Dispatched . | . . . . . Investigation . | . . . . . Extermination . | . . . . . Reinforcement . | . . . . . Assault . | . . . . . Garrison . | . . . . . Intercept . | . . . . . Searches Triggered . | . . . . . Construction Impeded . | . . . . . Haulers Reinforced . | . . . . . Active Scanning Responses . | . . . . . Cargo Convoy Interrupts . | . . . . . Stealth | -11 -10 -10 -9 -9 --------- Run | Yrd Mat Sub Rec Scr Distress Signals 1 | . 1 . . . Communications Jammed . | . . . . . Distress Signals . | . . . . . Times Spotted 30 | . 9 11 1 9 Peak Tracking Total 6 | . 4 6 . 4 Tactical Retreats . | . . . . . Traps | -11 -10 -10 -9 -9 ------- Run | Yrd Mat Sub Rec Scr Traps Triggered . | . . . . . Indirectly . | . . . . . Trap Hack Attempts . | . . . . . Triggered . | . . . . . Disarmed . | . . . . . Reprogrammed . | . . . . . Reused . | . . . . . Traps Extracted . | . . . . . Installed . | . . . . . Triggered . | . . . . . Machines | -11 -10 -10 -9 -9 ---------- Run | Yrd Mat Sub Rec Scr Machines Disabled 16 | . 2 3 1 10 Max in Single Turn 4 | . 1 2 1 4 Machines Repaired . | . . . . . Machines Dismantled . | . . . . . Machines Sabotaged . | . . . . . Overloaded Fab Kills . | . . . . . Hacking | -11 -10 -10 -9 -9 --------- Run | Yrd Mat Sub Rec Scr Machines Accessed 3 | . . . 3 . Terminals 3 | . . . 3 . Fabricators . | . . . . . Repair Stations . | . . . . . Recycling Units . | . . . . . Scanalyzers . | . . . . . Garrison Access . | . . . . . Total Hacks 6 | . . . 6 . Successful 2 | . . . 2 . Failed 4 | . . . 4 . Catastrophic 1 | . . . 1 . Database Lockouts . | . . . . . Manual 1 | . 1 . . . Terminals 6 | . . . 6 . Fabricators . | . . . . . Repair Stations . | . . . . . Recycling Units . | . . . . . Scanalyzers . | . . . . . Garrison Access . | . . . . . Terminal Hacks 2 | . . . 2 . Prototype ID Bank 2 | . . . 2 . Fabricator Hacks . | . . . . . Repair Station Hacks . | . . . . . Recycling Unit Hacks . | . . . . . Scanalyzer . | . . . . . Garrison Access Hacks . | . . . . . Unauthorized Hacks . | . . . . . Terminals . | . . . . . Fabricators . | . . . . . Repair Stations . | . . . . . Recycling Units . | . . . . . Scanalyzers . | . . . . . Garrison Access . | . . . . . Data Cores Recovered . | . . . . . Used . | . . . . . Hacking Detections 3 | . . . 3 . Full Trace Events 1 | . . . 1 . Feedback Events . | . . . . . Feedback Blocked . | . . . . . Robot Schematics Acquired . | . . . . . Robots Built . | . . . . . Authchips . | . . . . . Time . | . . . . . Total Robot Build Rating . | . . . . . Part Schematics Acquired . | . . . . . Parts Built . | . . . . . Authchips . | . . . . . Time . | . . . . . Total Part Build Rating . | . . . . . Part Studies Acquired . | . . . . . Parts Repaired . | . . . . . Time . | . . . . . Parts Recycled . | . . . . . Recycled Matter . | . . . . . Retrieved Matter . | . . . . . Retrieved Components . | . . . . . Parts Scanalyzed . | . . . . . Part Schematics Acquired . | . . . . . Parts Damaged . | . . . . . Bothacking | -11 -10 -10 -9 -9 ------------ Run | Yrd Mat Sub Rec Scr Used RIF Installer . | . . . . . Robots Hacked . | . . . . . Non-combat . | . . . . . Combat . | . . . . . Robot Hacks Applied . | . . . . . Relay Couplers Released . | . . . . . Fabnet Peak Effective % . | . . . . . Robots Rewired . | . . . . . Allies Hacked . | . . . . . Hacks Repelled . | . . . . . Allies | -11 -10 -10 -9 -9 -------- Run | Yrd Mat Sub Rec Scr Total Allies . | . . . . . Largest Group . | . . . . . Highest-Rated Group . | . . . . . Highest-Rated Ally . | . . . . . Total Orders . | . . . . . Ally Attacks . | . . . . . Total Damage . | . . . . . Kills . | . . . . . Allies Corrupted . | . . . . . Allies Melted . | . . . . . X0-1V1 Amusement Gains 122 | . 2 30 . 90 Good Acts 11 | . 4 7 . . Bad Acts 24 | . 13 6 4 1 Intel | -11 -10 -10 -9 -9 ------- Run | Yrd Mat Sub Rec Scr Active Infowar (turns) . | . . . . . Robot Analysis Total . | . . . . . Derelict Logs Recovered . | . . . . . Drone Launches . | . . . . . Drone Recoveries . | . . . . . Exploration | -11 -10 -10 -9 -9 ------------- Run | Yrd Mat Sub Rec Scr Turns Passed 2167 | 63 341 1138 308 317 Spaces Moved 1106 | 42 93 461 282 228 Core 162 | 12 . 149 . 1 Treads . | . . . . . Legs 404 | 30 93 278 . 3 Wheels 540 | . . 34 282 224 Hover . | . . . . . Flight . | . . . . . Fastest Speed 50 | 50 120 90 90 90 Average Speed 148 | 100 121 219 92 95 Slowest Speed 450 | 120 190 450 105 450 Overloaded Moves . | . . . . . Propulsion Burnouts . | . . . . . Robots Hopped . | . . . . . Potential Cave-ins . | . . . . . Cave-ins Triggered . | . . . . . Exploration Rate (%) 26 | 3 13 32 60 26 Regions Visited 4 Branch Regions 3 Pre-discovered Areas . | . . . . . Known Exits Taken . | . . . . . Unknown Exits Taken 4 | 1 1 1 1 . Scrap Searched 1 | . . . . 1 Spaces Dug . | . . . . . Terrain Destroyed 160 | . 21 41 . 98 Melee . | . . . . . Projectile . | . . . . . AOE 160 | . 21 41 . 98 Terrain Rammed . | . . . . . Walls Destroyed . | . . . . . Machines Disabled . | . . . . . Actions | -11 -10 -10 -9 -9 --------- Run | Yrd Mat Sub Rec Scr Total 1500 | 57 280 554 313 296 Wait 170 | . 123 13 9 25 Move 1102 | 41 92 460 281 228 Hop . | . . . . . Pick Up 36 | 7 15 11 . 3 Fast Attach 1 | . . . . 1 Attach 17 | 6 1 5 . 5 Detach . | . . . . . Swap 20 | . 12 5 1 2 Drop 39 | . 13 17 6 3 Fire 63 | 3 22 21 5 12 Melee 27 | . 1 8 9 9 Ram . | . . . . . Kick 2 | . 1 1 . . Crush . | . . . . . Escape Stasis . | . . . . . Rewire 8 | . . . . 8 Trap . | . . . . . Miscellaneous 15 | . . 13 2 . Route ------- -11/Scrapyard -10/Materials -10/Subcaves -9/Recycling -9/Scraptown (discovered 1 exit: [*Fac]) History --------- Turn | Location | Event 40 | -11/Scrapyard | Discovered new exit (range 15) 64 | -11/Scrapyard | Entered Materials 154 | -10/Materials | Discovered new exit (range 10) 199 | -10/Materials | Prayed at D.C.S.S. Altar Unit 315 | -10/Materials | Build established: Mutant 405 | -10/Materials | Entered Subcaves 406 | -10/Subcaves | Approached by a straggling Scientist 811 | -10/Subcaves | Ambushed by Subdweller buried in earth 816 | -10/Subcaves | Ambushed by Subdweller buried in earth 856 | -10/Subcaves | Lost 3 parts (2n1u) 1517 | -10/Subcaves | Discovered new exit (range 13) 1522 | -10/Subcaves | Core integrity fell below 50% 1543 | -10/Subcaves | Entered Recycling 1828 | -9/Recycling | Scanned before Scraplab entrance 1850 | -9/Recycling | Discovered new exit (range 2) 1851 | -9/Recycling | Entered Scraptown 2033 | -9/Scraptown | Discovered new exit (range 5) 2042 | -9/Scraptown | Attacked by Scraptown defenders 2083 | -9/Scraptown | Core integrity fell below 20% 2088 | -9/Scraptown | X0-1V1 rescued you from certain death 2115 | -9/Scraptown | Lost 4 parts (1n1u2w) 2168 | -9/Scraptown | Destroyed by 59-GGW(j) with Overtuned Pulse Rifle Last Messages --------------- Arm. Wheel destroyed. Critical hit (Burn: +50). 59-GGW(j) cannibalizes Ovr. Titanium Leg to repair Ovr. Titanium Leg. Imp. Deuterium Engine destroyed. MZ-B6N(j) knocked back. Critical hit (Burn: +50). Hvy. Assault Rifle destroyed. MZ-B6N(j) heat damages Lgt. Deuterium Engine. MZ-B6N(j) destroyed. 59-GGW(j) cannibalizes Ovr. Titanium Leg to repair Ovr. Titanium Leg. Critical hit (Burn: +50). System corrupted: Heat flow error (+261). 59-GGW(j) suffers critical hit (Smash). Destroyed Lgt. Deuterium Engine. 59-GGW(j) system corrupted by crushing effect. 59-GGW(j) knocked back. The unstable cave ceiling collapses. X0-1V1 snickers! Map ----- +----------------------------------------------------+ | | | | | | | | | | | | | | | | | ??????????????????????????????????# #### ###???? | | ??????????????????????????????????# ! ##??? | | ?????????????????"????????????????## = #??? | | ????????????" ??? "???????????????# < *%#??? | | ???????????? """ "???????##?????# ! #??? | | ????????????" """ "#????""""""???## ?? | | ???????????#" """ "#????"" ""#??### " | | ???????????#" "#?###" ##???# " | | ?????????###""" """### ##??## * # " | | ???????### # ???# " | | ???????""" ### "" | | ???" """" ! | | ???"" """ %!% | | ????"" [ = | | ????"" " ##### #### | | ???"" " = ##?????## ##??? | | ????"""""" [%!""" """##????# ##### | | ??????#### !j@ " " ??# """"" | | ?????????### #" #" " " "### ### " | | ???????????# #"" #" " " "#"" """ | | ???????????# ?#""" "#""""" """""#" """ " | | ???????????# ?#"" "###### ##?#?#" " """"" | | ???????????#??#" "#????? ""???#" ##""" | | ??????????????#""" ""#??????" ??#" "" " #?### | | ??????????????#### ###???????????#" " #???? | | ?????????????????# ?????????????#"""""" #???? | | ?????????????????###?????????????####### #???? | | ???????????????????????????????????????# #???? | | ?????????????????????????????########### #???? | | ?????????????????????????? #???? | | ?????????????????????????? #???? | | ?????????????????????????????########### #???? | | ??????????????????????????????????????# #???? | | ?????????????????????????????????????### ##### | | ?????????????????????????????#######?# | | ?????????????????????????#""""""""" # | | ??????????????????????????? # | | ?????????????????????????????????" | | ?????????????????????????????????" # | | ?????????????????????????????????" # ##### | | ?????????????????????????????????" ?# #???? | | ?????????????????????????????????" ?# ##### | +----------------------------------------------------+ Best States ------------- Heat Dissipation 25 Energy Generation 16 Energy Capacity 290 Matter Stores 300 Matter Capacity 300 Sight Range 16 Terrain Scan Density 10 Evasion (%) 55 Item Schematics ----------------- None Robot Schematics ------------------ None Fabricated ------------ Nothing Repaired ---------- Nothing Studied --------- None Alien Tech Used ----------------- None Achievements -------------- Do Not Disturb Challenges ------------ None Game ------ Seed JunkSubdwellerMultirail Manual? 0 Play Time 00:18:10 Cumulative 82.0 hours Start 2026.06.26 @ 19:43:28 End 2026.06.26 @ 20:05:09 Sessions 1 Manual Loads 0 Difficulty Rogue Special Mode None Game No. 61 Rogue 31 Adventurer 30 Explorer 0 Win Type - Total 1 Types 1/0/0/0/0/0/0/0/0/0 Lore% 29 Gallery% 33 Achievement% 35 Wizard Run 0 Options --------- Layout 2 ASCII 0 Keyboard 0 Movement Numpad Keybinds 0 Fullscreen 1 Font 16/SmallcapsGlow Map View 25x24 Zoom Use 83% Tactical HUD 0 Map Filters NONE Filters NONE Steam 1 RUN: e7dbf15f-64fb-46a6-919c-bfc19d4b8e6e